[Event "*** SCC Grand Prix: Titled Tuesday Blitz"]
[Site "Chess.com"]
[Date "2020.07.21"]
[Round "4"]
[White "cassoulet"]
[Black "Colchonero64"]
[Result "0-1"]
[WhiteElo "2658"]
[BlackElo "2935"]
[TimeControl "180+1"]
[EndTime "10:39:42 PDT"]
[Termination "Colchonero64 won by resignation"]

1. e4 {[%clk 0:03:00.9]} 1... c5 {[%clk 0:02:59.6]} 2. Nf3 {[%clk 0:03:00.5]}
2... e6 {[%clk 0:02:59.9]} 3. d4 {[%clk 0:03:00.3]} 3... cxd4 {[%clk 0:03:00]}
4. Nxd4 {[%clk 0:03:01.2]} 4... a6 {[%clk 0:03:00.5]} 5. Nc3 {[%clk 0:03:01.8]}
5... b5 {[%clk 0:02:59.8]} 6. Bd3 {[%clk 0:03:02]} 6... Qb6 {[%clk 0:02:59.4]}
7. Be3 {[%clk 0:03:01.5]} 7... Bc5 {[%clk 0:02:55.5]} 8. Be2 {[%clk 0:03:01.4]}
8... Nc6 {[%clk 0:02:45.7]} 9. Nxc6 {[%clk 0:03:00.8]} 9... Bxe3 {[%clk
0:02:33.2]} 10. fxe3 {[%clk 0:03:01.7]} 10... dxc6 {[%clk 0:02:33.6]} 11. Qd4
{[%clk 0:03:01.5]} 11... Qxd4 {[%clk 0:02:33.2]} 12. exd4 {[%clk 0:03:02.4]}
12... Bb7 {[%clk 0:02:21.2]} 13. e5 {[%clk 0:02:53.4]} 13... c5 {[%clk
0:02:21.2]} 14. dxc5 {[%clk 0:02:53]} 14... Ne7 {[%clk 0:02:15.3]} 15. Bf3
{[%clk 0:02:45.3]} 15... Bxf3 {[%clk 0:02:13.4]} 16. gxf3 {[%clk 0:02:46.2]}
16... Ng6 {[%clk 0:02:12.1]} 17. O-O-O {[%clk 0:02:42.3]} 17... Nxe5 {[%clk
0:02:09.2]} 18. f4 {[%clk 0:02:42.3]} 18... Nc4 {[%clk 0:02:00]} 19. Rhe1 {[%clk
0:02:13.7]} 19... O-O {[%clk 0:01:47]} 20. b3 {[%clk 0:02:13.6]} 20... Na5
{[%clk 0:01:46.4]} 21. Rd6 {[%clk 0:02:12.7]} 21... Nb7 {[%clk 0:01:39.6]} 22.
Rc6 {[%clk 0:02:09]} 22... b4 {[%clk 0:01:31.5]} 23. Ne4 {[%clk 0:01:58.9]}
23... Rfc8 {[%clk 0:01:29.7]} 24. Rxc8+ {[%clk 0:01:33.1]} 24... Rxc8 {[%clk
0:01:28.9]} 25. Rd1 {[%clk 0:01:34]} 25... Kf8 {[%clk 0:01:21.5]} 26. Rd4 {[%clk
0:01:14.1]} 26... a5 {[%clk 0:01:15.3]} 27. Rc4 {[%clk 0:01:09.8]} 27... Ke7
{[%clk 0:01:09]} 28. c3 {[%clk 0:00:59]} 28... bxc3 {[%clk 0:00:53.1]} 29. a3
{[%clk 0:00:58.2]} 29... f5 {[%clk 0:00:46.5]} 30. Nd6 {[%clk 0:00:37.7]} 30...
Nxd6 {[%clk 0:00:45.3]} 31. cxd6+ {[%clk 0:00:36.8]} 31... Kd7 {[%clk
0:00:45.7]} 32. Rxc8 {[%clk 0:00:31.3]} 32... Kxc8 {[%clk 0:00:46.6]} 33. Kc2
{[%clk 0:00:32]} 33... Kd7 {[%clk 0:00:38.8]} 34. Kxc3 {[%clk 0:00:32.3]} 34...
Kxd6 {[%clk 0:00:39.3]} 35. Kd4 {[%clk 0:00:33]} 35... e5+ {[%clk 0:00:20.7]}
36. fxe5+ {[%clk 0:00:32.6]} 36... Ke6 {[%clk 0:00:20.9]} 37. b4 {[%clk
0:00:32.8]} 37... axb4 {[%clk 0:00:20.8]} 38. axb4 {[%clk 0:00:33.7]} 38... f4
{[%clk 0:00:20.9]} 39. b5 {[%clk 0:00:34.1]} 39... f3 {[%clk 0:00:21]} 40. b6
{[%clk 0:00:24.2]} 40... f2 {[%clk 0:00:19.3]} 41. b7 {[%clk 0:00:24.6]} 41...
f1=Q {[%clk 0:00:19]} 42. b8=Q {[%clk 0:00:24.7]} 42... Qg1+ {[%clk 0:00:15]}
43. Ke4 {[%clk 0:00:23.9]} 43... Qg2+ {[%clk 0:00:14.2]} 44. Kd4 {[%clk
0:00:23.5]} 44... Qd5+ {[%clk 0:00:14]} 45. Ke3 {[%clk 0:00:15.6]} 45... Qxe5+
{[%clk 0:00:14.6]} 46. Qxe5+ {[%clk 0:00:16.2]} 46... Kxe5 {[%clk 0:00:15.3]}
47. Kf3 {[%clk 0:00:17.1]} 47... Kf5 {[%clk 0:00:15.3]} 48. Kg3 {[%clk
0:00:17.3]} 48... Kg5 {[%clk 0:00:15.3]} 49. h3 {[%clk 0:00:15.9]} 49... Kf5
{[%clk 0:00:14.3]} 50. Kf3 {[%clk 0:00:15.8]} 50... Kg5 {[%clk 0:00:14.1]} 51.
Kg3 {[%clk 0:00:15.9]} 51... g6 {[%clk 0:00:13.6]} 52. Kf3 {[%clk 0:00:15.5]}
52... Kh4 {[%clk 0:00:13.6]} 53. Kg2 {[%clk 0:00:15.9]} 53... Kg5 {[%clk
0:00:10.4]} 54. Kg3 {[%clk 0:00:15.7]} 54... Kf5 {[%clk 0:00:10.6]} 55. Kh4
{[%clk 0:00:14.5]} 55... h6 {[%clk 0:00:09.6]} 56. Kg3 {[%clk 0:00:14.6]} 56...
g5 {[%clk 0:00:09.8]} 57. Kf3 {[%clk 0:00:14.7]} 57... h5 {[%clk 0:00:10.1]} 58.
Kg3 {[%clk 0:00:14.6]} 58... Ke4 {[%clk 0:00:10.5]} 59. Kg2 {[%clk 0:00:12.7]}
59... Kf4 {[%clk 0:00:10.3]} 60. Kf2 {[%clk 0:00:12.9]} 60... h4 {[%clk
0:00:10.6]} 61. Kg2 {[%clk 0:00:11.9]} 61... Ke3 {[%clk 0:00:10.9]} 62. Kg1
{[%clk 0:00:07.7]} 62... Kf3 {[%clk 0:00:10.7]} 63. Kh2 {[%clk 0:00:06.9]} 63...
Kf2 {[%clk 0:00:10.8]} 64. Kh1 {[%clk 0:00:07.1]} 64... Kg3 {[%clk 0:00:11.6]}
65. Kg1 {[%clk 0:00:08]} 65... Kxh3 {[%clk 0:00:12]} 66. Kh1 {[%clk 0:00:08.9]}
66... Kg3 {[%clk 0:00:12]} 67. Kg1 {[%clk 0:00:09.8]} 67... g4 {[%clk
0:00:12.3]} 68. Kh1 {[%clk 0:00:10.7]} 68... Kf2 {[%clk 0:00:12.5]} 69. Kh2
{[%clk 0:00:10.9]} 69... g3+ {[%clk 0:00:12.9]} 70. Kh3 {[%clk 0:00:10.6]} 70...
g2 {[%clk 0:00:13.1]} 0-1

[Event "*** SCC Grand Prix: Titled Tuesday Blitz"]
[Site "Chess.com"]
[Date "2020.07.21"]
[Round "4"]
[White "IwkooO"]
[Black "MNyuyu"]
[Result "1-0"]
[WhiteElo "2612"]
[BlackElo "2424"]
[TimeControl "180+1"]
[EndTime "10:39:42 PDT"]
[Termination "IwkooO won by checkmate"]

1. c4 {[%clk 0:03:00.9]} 1... e6 {[%clk 0:02:59.1]} 2. Nc3 {[%clk 0:02:59.6]}
2... d5 {[%clk 0:02:58.6]} 3. e3 {[%clk 0:03:00.3]} 3... Be7 {[%clk 0:02:57.6]}
4. Nf3 {[%clk 0:03:00.8]} 4... Nf6 {[%clk 0:02:57.2]} 5. b3 {[%clk 0:03:01.2]}
5... O-O {[%clk 0:02:56.6]} 6. Bb2 {[%clk 0:03:01.5]} 6... b6 {[%clk 0:02:56.8]}
7. cxd5 {[%clk 0:02:28.3]} 7... exd5 {[%clk 0:02:54.4]} 8. d4 {[%clk 0:02:29.2]}
8... Bb7 {[%clk 0:02:45.8]} 9. Bd3 {[%clk 0:02:29.6]} 9... Nbd7 {[%clk
0:02:45.3]} 10. O-O {[%clk 0:02:30.2]} 10... c5 {[%clk 0:02:44.8]} 11. Ne2
{[%clk 0:02:25]} 11... Ne4 {[%clk 0:02:42.9]} 12. dxc5 {[%clk 0:02:13.5]} 12...
Ndxc5 {[%clk 0:02:37.8]} 13. Bc2 {[%clk 0:02:13.4]} 13... Bf6 {[%clk 0:02:34.6]}
14. Bxf6 {[%clk 0:02:08.5]} 14... Qxf6 {[%clk 0:02:34]} 15. Qd4 {[%clk
0:02:09.2]} 15... Qh6 {[%clk 0:02:29]} 16. Ng3 {[%clk 0:02:04.1]} 16... Rad8
{[%clk 0:02:19.6]} 17. Nf5 {[%clk 0:01:23.6]} 17... Qf6 {[%clk 0:02:18.5]} 18.
Qxf6 {[%clk 0:01:22.3]} 18... Nxf6 {[%clk 0:02:17.5]} 19. b4 {[%clk 0:01:21.2]}
19... Ne6 {[%clk 0:02:10.3]} 20. Rfd1 {[%clk 0:01:19.2]} 20... g6 {[%clk
0:02:08.6]} 21. N5d4 {[%clk 0:01:18.1]} 21... Kg7 {[%clk 0:02:07.3]} 22. Bb3
{[%clk 0:01:15.7]} 22... Ne4 {[%clk 0:02:03.9]} 23. a4 {[%clk 0:01:02.4]} 23...
Rc8 {[%clk 0:01:56.2]} 24. a5 {[%clk 0:01:02.3]} 24... bxa5 {[%clk 0:01:51.8]}
25. Rxa5 {[%clk 0:01:01]} 25... a6 {[%clk 0:01:51.7]} 26. Bxd5 {[%clk
0:00:32.3]} 26... Bxd5 {[%clk 0:01:50.3]} 27. Rxd5 {[%clk 0:00:32]} 27... Nxd4
{[%clk 0:01:30.5]} 28. R5xd4 {[%clk 0:00:31.7]} 28... Nc3 {[%clk 0:01:25.6]} 29.
Re1 {[%clk 0:00:32.1]} 29... Rb8 {[%clk 0:01:20.1]} 30. h4 {[%clk 0:00:31.4]}
30... h6 {[%clk 0:01:17.8]} 31. Kh2 {[%clk 0:00:27.9]} 31... Rb6 {[%clk
0:01:17.1]} 32. Rc4 {[%clk 0:00:24]} 32... Nd5 {[%clk 0:01:15.4]} 33. Ne5 {[%clk
0:00:15.8]} 33... Rxb4 {[%clk 0:01:10.5]} 34. Rc5 {[%clk 0:00:16]} 34... Nf6
{[%clk 0:01:07.6]} 35. f4 {[%clk 0:00:16]} 35... Rfb8 {[%clk 0:00:58.1]} 36. Rc7
{[%clk 0:00:15.1]} 36... R8b7 {[%clk 0:00:57.3]} 37. Rec1 {[%clk 0:00:15.4]}
37... a5 {[%clk 0:00:55.3]} 38. Nxf7 {[%clk 0:00:08.8]} 38... Nd5 {[%clk
0:00:51.1]} 39. Rxb7 {[%clk 0:00:08.8]} 39... Rxb7 {[%clk 0:00:50.1]} 40. Nd6
{[%clk 0:00:09.5]} 40... Rb3 {[%clk 0:00:48.6]} 41. e4 {[%clk 0:00:09.2]} 41...
Nxf4 {[%clk 0:00:47.7]} 42. Rc7+ {[%clk 0:00:09.5]} 42... Kg8 {[%clk 0:00:45.9]}
43. g3 {[%clk 0:00:06.5]} 43... Rb2+ {[%clk 0:00:44.8]} 44. Kh1 {[%clk 0:00:07]}
44... Ne2 {[%clk 0:00:43.3]} 45. Kg2 {[%clk 0:00:07.6]} 45... Nd4+ {[%clk
0:00:40.8]} 46. Kf1 {[%clk 0:00:06.5]} 46... a4 {[%clk 0:00:37.2]} 47. Ra7
{[%clk 0:00:05.7]} 47... Ra2 {[%clk 0:00:33.8]} 48. e5 {[%clk 0:00:06.2]} 48...
a3 {[%clk 0:00:32.9]} 49. Ne8 {[%clk 0:00:05.9]} 49... Ne6 {[%clk 0:00:30.6]}
50. Nf6+ {[%clk 0:00:05.9]} 50... Kf8 {[%clk 0:00:30.3]} 51. Nd7+ {[%clk
0:00:06.2]} 51... Ke8 {[%clk 0:00:29.7]} 52. Nf6+ {[%clk 0:00:06.8]} 52... Kd8
{[%clk 0:00:29.4]} 53. Ke1 {[%clk 0:00:06.1]} 53... Ra1+ {[%clk 0:00:28.2]} 54.
Kd2 {[%clk 0:00:06.5]} 54... a2 {[%clk 0:00:27.1]} 55. Kc3 {[%clk 0:00:06.9]}
55... Rc1+ {[%clk 0:00:25.1]} 56. Kb2 {[%clk 0:00:07.2]} 56... Rg1 {[%clk
0:00:24.3]} 57. Kxa2 {[%clk 0:00:07.4]} 57... Rxg3 {[%clk 0:00:23.7]} 58. Ra6
{[%clk 0:00:07.9]} 58... Nc5 {[%clk 0:00:22]} 59. Rd6+ {[%clk 0:00:08]} 59...
Ke7 {[%clk 0:00:19.8]} 60. Nd5+ {[%clk 0:00:08.4]} 60... Ke8 {[%clk 0:00:17.8]}
61. Rc6 {[%clk 0:00:07.3]} 61... Nd3 {[%clk 0:00:17.4]} 62. e6 {[%clk
0:00:06.4]} 62... Re3 {[%clk 0:00:15.3]} 63. Rc8# {[%clk 0:00:06.8]} 1-0

[Event "*** SCC Grand Prix: Titled Tuesday Blitz"]
[Site "Chess.com"]
[Date "2020.07.21"]
[Round "4"]
[White "KingCrusher275"]
[Black "Munkhzul_Turmunkh"]
[Result "1-0"]
[WhiteElo "2402"]
[BlackElo "2591"]
[TimeControl "180+1"]
[EndTime "10:39:42 PDT"]
[Termination "KingCrusher275 won by resignation"]

1. d4 {[%clk 0:03:00.9]} 1... Nf6 {[%clk 0:02:59.1]} 2. c4 {[%clk 0:03:01.1]}
2... e6 {[%clk 0:02:59.1]} 3. Nc3 {[%clk 0:03:00.7]} 3... Bb4 {[%clk 0:02:58.5]}
4. Qc2 {[%clk 0:03:00.6]} 4... O-O {[%clk 0:02:57.7]} 5. a3 {[%clk 0:03:00.5]}
5... Bxc3+ {[%clk 0:02:57.6]} 6. Qxc3 {[%clk 0:03:00.7]} 6... b6 {[%clk
0:02:58]} 7. Bg5 {[%clk 0:02:59]} 7... Bb7 {[%clk 0:02:58.2]} 8. f3 {[%clk
0:02:57.5]} 8... h6 {[%clk 0:02:58.2]} 9. Bh4 {[%clk 0:02:57.3]} 9... d5 {[%clk
0:02:58.4]} 10. e3 {[%clk 0:02:53.4]} 10... Nbd7 {[%clk 0:02:58.5]} 11. cxd5
{[%clk 0:02:53.5]} 11... Nxd5 {[%clk 0:02:59.4]} 12. Bxd8 {[%clk 0:02:53]} 12...
Nxc3 {[%clk 0:03:00]} 13. Bh4 {[%clk 0:02:53.7]} 13... Nd5 {[%clk 0:03:00.1]}
14. Bf2 {[%clk 0:02:54]} 14... c5 {[%clk 0:03:00.4]} 15. e4 {[%clk 0:02:40.9]}
15... Ne7 {[%clk 0:03:00.2]} 16. Ne2 {[%clk 0:02:41]} 16... f5 {[%clk
0:02:56.2]} 17. exf5 {[%clk 0:02:28.6]} 17... Nxf5 {[%clk 0:02:57.1]} 18. dxc5
{[%clk 0:02:24.5]} 18... Nxc5 {[%clk 0:02:58]} 19. Bxc5 {[%clk 0:02:21.9]} 19...
bxc5 {[%clk 0:02:56.5]} 20. Nc3 {[%clk 0:02:17.6]} 20... Ne3 {[%clk 0:02:35.7]}
21. Kf2 {[%clk 0:02:07.8]} 21... Nd5 {[%clk 0:02:11.2]} 22. Ne4 {[%clk
0:01:52.5]} 22... Rac8 {[%clk 0:01:48.2]} 23. Bc4 {[%clk 0:01:43.9]} 23... Kh7
{[%clk 0:01:34.9]} 24. Nd6 {[%clk 0:01:36]} 24... Rc7 {[%clk 0:01:34.4]} 25.
Nxb7 {[%clk 0:01:35.2]} 25... Rxb7 {[%clk 0:01:35.3]} 26. b3 {[%clk 0:01:31.7]}
26... Kg6 {[%clk 0:01:26.6]} 27. Rhe1 {[%clk 0:01:31.1]} 27... Kf6 {[%clk
0:01:25.4]} 28. Rad1 {[%clk 0:01:28.2]} 28... Rd8 {[%clk 0:01:22.9]} 29. Rd3
{[%clk 0:01:23.8]} 29... Rbd7 {[%clk 0:01:21.3]} 30. Red1 {[%clk 0:01:23.1]}
30... Nb6 {[%clk 0:01:19.9]} 31. Rxd7 {[%clk 0:01:18.7]} 31... Rxd7 {[%clk
0:01:20.8]} 32. Rxd7 {[%clk 0:01:18.4]} 32... Nxd7 {[%clk 0:01:21.7]} 33. Ke3
{[%clk 0:01:18.1]} 33... Ne5 {[%clk 0:01:16.5]} 34. Be2 {[%clk 0:01:17.7]} 34...
Nc6 {[%clk 0:01:15.8]} 35. Ke4 {[%clk 0:01:14.5]} 35... Nd4 {[%clk 0:01:13.7]}
36. Bc4 {[%clk 0:01:14.4]} 36... Nc2 {[%clk 0:01:12.2]} 37. a4 {[%clk
0:01:11.5]} 37... Nb4 {[%clk 0:01:11.1]} 38. a5 {[%clk 0:01:04]} 38... Nc6
{[%clk 0:01:08.7]} 39. a6 {[%clk 0:01:04.2]} 39... Ne5 {[%clk 0:01:04]} 40. h3
{[%clk 0:00:59.1]} 40... Nf7 {[%clk 0:01:03.6]} 41. f4 {[%clk 0:00:55.5]} 41...
Nd6+ {[%clk 0:01:03.1]} 42. Ke3 {[%clk 0:00:49.6]} 42... Nf5+ {[%clk 0:01:01.6]}
43. Ke4 {[%clk 0:00:47.7]} 43... Nd6+ {[%clk 0:01:01.2]} 44. Ke3 {[%clk
0:00:47.8]} 44... e5 {[%clk 0:00:48.6]} 45. g4 {[%clk 0:00:41.6]} 45... exf4+
{[%clk 0:00:47.8]} 46. Kxf4 {[%clk 0:00:42]} 46... g5+ {[%clk 0:00:48.5]} 47.
Kf3 {[%clk 0:00:38.2]} 47... Ke5 {[%clk 0:00:46.6]} 48. Ke3 {[%clk 0:00:37.3]}
48... Ne4 {[%clk 0:00:43]} 49. Bf7 {[%clk 0:00:32.2]} 49... Nf6 {[%clk
0:00:39.3]} 50. Bc4 {[%clk 0:00:31.9]} 50... Nd7 {[%clk 0:00:38.5]} 51. Be2
{[%clk 0:00:30.2]} 51... Nb6 {[%clk 0:00:38.2]} 52. Kd3 {[%clk 0:00:26.5]} 52...
Kf4 {[%clk 0:00:35.4]} 53. Kc3 {[%clk 0:00:25.1]} 53... Ke3 {[%clk 0:00:32.8]}
54. Bb5 {[%clk 0:00:23.6]} 54... Kf3 {[%clk 0:00:29.5]} 55. b4 {[%clk
0:00:23.9]} 55... cxb4+ {[%clk 0:00:28.1]} 56. Kxb4 {[%clk 0:00:24.3]} 56... Kg2
{[%clk 0:00:26.9]} 57. Kc5 {[%clk 0:00:22.1]} 57... Kxh3 {[%clk 0:00:26.1]} 58.
Be2 {[%clk 0:00:22.2]} 58... Kg3 {[%clk 0:00:23.2]} 59. Kc6 {[%clk 0:00:22.4]}
59... Kf2 {[%clk 0:00:20.5]} 60. Bd1 {[%clk 0:00:21.7]} 60... Ke1 {[%clk
0:00:20.6]} 61. Bb3 {[%clk 0:00:21.9]} 61... Ke2 {[%clk 0:00:14.2]} 62. Kb7
{[%clk 0:00:22]} 62... Nd7 {[%clk 0:00:14.1]} 63. Kxa7 {[%clk 0:00:20.7]} 63...
Nc5 {[%clk 0:00:14.1]} 64. Bf7 {[%clk 0:00:18.8]} 64... Kf3 {[%clk 0:00:13.3]}
65. Bh5 {[%clk 0:00:18.9]} 65... Ke4 {[%clk 0:00:10.6]} 66. Kb6 {[%clk
0:00:19.2]} 66... Nd7+ {[%clk 0:00:10.1]} 67. Kc6 {[%clk 0:00:18]} 67... Ne5+
{[%clk 0:00:08.6]} 68. Kb7 {[%clk 0:00:18.4]} 68... Nd7 {[%clk 0:00:04.8]} 69.
a7 {[%clk 0:00:18.6]} 69... Nc5+ {[%clk 0:00:04.8]} 70. Kc6 {[%clk 0:00:17.8]}
1-0

[Event "*** SCC Grand Prix: Titled Tuesday Blitz"]
[Site "Chess.com"]
[Date "2020.07.21"]
[Round "4"]
[White "GMBenjaminBok"]
[Black "aliba25"]
[Result "1-0"]
[WhiteElo "2873"]
[BlackElo "2633"]
[TimeControl "180+1"]
[EndTime "10:39:43 PDT"]
[Termination "GMBenjaminBok won by resignation"]

1. d4 {[%clk 0:03:00.9]} 1... Nf6 {[%clk 0:02:59.6]} 2. c4 {[%clk 0:03:00.8]}
2... c5 {[%clk 0:02:59.6]} 3. Nf3 {[%clk 0:03:00.3]} 3... cxd4 {[%clk
0:02:53.9]} 4. Nxd4 {[%clk 0:03:01.2]} 4... e5 {[%clk 0:02:54.2]} 5. Nb5 {[%clk
0:03:00.1]} 5... d5 {[%clk 0:02:54.3]} 6. cxd5 {[%clk 0:03:00.5]} 6... Bc5
{[%clk 0:02:54.9]} 7. e3 {[%clk 0:02:58.3]} 7... O-O {[%clk 0:02:52.8]} 8. N5c3
{[%clk 0:02:56.8]} 8... e4 {[%clk 0:02:51.4]} 9. a3 {[%clk 0:02:44.2]} 9... a5
{[%clk 0:02:49.2]} 10. Nd2 {[%clk 0:02:42.9]} 10... Bf5 {[%clk 0:02:48.5]} 11.
Be2 {[%clk 0:02:37.9]} 11... Re8 {[%clk 0:02:46.7]} 12. b3 {[%clk 0:02:16.9]}
12... Nxd5 {[%clk 0:02:39.7]} 13. Nxd5 {[%clk 0:02:02.3]} 13... Qxd5 {[%clk
0:02:40.6]} 14. Bb2 {[%clk 0:02:02.5]} 14... Nc6 {[%clk 0:02:37.2]} 15. Nc4
{[%clk 0:01:41.9]} 15... Qe6 {[%clk 0:02:29.9]} 16. Qc2 {[%clk 0:01:39.7]} 16...
Rac8 {[%clk 0:02:26.4]} 17. O-O {[%clk 0:01:38.2]} 17... b5 {[%clk 0:01:46.3]}
18. Nd2 {[%clk 0:01:15.6]} 18... Ne5 {[%clk 0:01:46.4]} 19. Qb1 {[%clk
0:01:07.2]} 19... Nd3 {[%clk 0:01:38.8]} 20. Rd1 {[%clk 0:00:55.9]} 20... Red8
{[%clk 0:01:27.7]} 21. Nf1 {[%clk 0:00:51.9]} 21... Qxb3 {[%clk 0:01:09.6]} 22.
Bd4 {[%clk 0:00:41.3]} 22... Qxb1 {[%clk 0:00:53.2]} 23. Raxb1 {[%clk
0:00:42.2]} 23... Bxd4 {[%clk 0:00:48.3]} 24. exd4 {[%clk 0:00:43.1]} 24... b4
{[%clk 0:00:47.3]} 25. Bxd3 {[%clk 0:00:35.2]} 25... exd3 {[%clk 0:00:46.9]} 26.
axb4 {[%clk 0:00:35.5]} 26... axb4 {[%clk 0:00:21.1]} 27. Rxb4 {[%clk
0:00:34.1]} 27... Bg6 {[%clk 0:00:21.2]} 28. Ne3 {[%clk 0:00:32]} 28... Rd7
{[%clk 0:00:15.1]} 29. d5 {[%clk 0:00:31.8]} 29... h6 {[%clk 0:00:12]} 30. f4
{[%clk 0:00:31]} 30... Re8 {[%clk 0:00:04.1]} 31. Kf2 {[%clk 0:00:30.2]} 31...
Rde7 {[%clk 0:00:04.5]} 32. f5 {[%clk 0:00:10.7]} 32... Rxe3 {[%clk 0:00:04.5]}
33. fxg6 {[%clk 0:00:11.2]} 33... fxg6 {[%clk 0:00:04.7]} 34. d6 {[%clk
0:00:11.2]} 34... Re2+ {[%clk 0:00:03.4]} 35. Kf1 {[%clk 0:00:11.1]} 35... d2
{[%clk 0:00:03.7]} 36. Rbb1 {[%clk 0:00:08.4]} 36... R2e6 {[%clk 0:00:01.7]} 37.
Rxd2 {[%clk 0:00:07.7]} 37... Rd8 {[%clk 0:00:02.2]} 38. Rbd1 {[%clk 0:00:07.5]}
38... Rd7 {[%clk 0:00:02.6]} 39. Kf2 {[%clk 0:00:07.8]} 39... Kf7 {[%clk
0:00:03.1]} 40. Kf3 {[%clk 0:00:08]} 40... Rf6+ {[%clk 0:00:03.6]} 41. Kg3
{[%clk 0:00:07.8]} 41... Re6 {[%clk 0:00:03.4]} 42. Kf4 {[%clk 0:00:07.9]} 42...
g5+ {[%clk 0:00:03.5]} 43. Kg4 {[%clk 0:00:07.9]} 43... Kf6 {[%clk 0:00:03.8]}
44. Rf2+ {[%clk 0:00:06.9]} 44... Kg6 {[%clk 0:00:04.2]} 45. Rfd2 {[%clk
0:00:07.2]} 45... Kf6 {[%clk 0:00:04.1]} 46. Kf3 {[%clk 0:00:07]} 46... Kf5
{[%clk 0:00:04.2]} 47. Rd5+ {[%clk 0:00:06.7]} 47... Kf6 {[%clk 0:00:04.7]} 48.
R1d2 {[%clk 0:00:06.9]} 48... Re5 {[%clk 0:00:04.7]} 49. R5d4 {[%clk 0:00:05.4]}
49... Ke6 {[%clk 0:00:05]} 50. Kg4 {[%clk 0:00:05.7]} 50... Kf6 {[%clk
0:00:03.7]} 51. Kh5 {[%clk 0:00:05.6]} 51... Kf7 {[%clk 0:00:02.9]} 52. Rf2+
{[%clk 0:00:05.1]} 52... Ke6 {[%clk 0:00:03.2]} 53. Kg6 {[%clk 0:00:04.5]} 53...
Rd5 {[%clk 0:00:01]} 54. Rxd5 {[%clk 0:00:04.3]} 54... Kxd5 {[%clk 0:00:01.9]}
55. Rd2+ {[%clk 0:00:04.7]} 55... Ke6 {[%clk 0:00:02.3]} 56. Rd1 {[%clk
0:00:05]} 56... Ke5 {[%clk 0:00:02.7]} 57. Re1+ {[%clk 0:00:05]} 57... Kxd6
{[%clk 0:00:03.1]} 58. Rd1+ {[%clk 0:00:05]} 58... Ke6 {[%clk 0:00:04]} 59. Rxd7
{[%clk 0:00:05.5]} 59... Kxd7 {[%clk 0:00:04.9]} 60. Kxg7 {[%clk 0:00:06.2]}
60... h5 {[%clk 0:00:05.8]} 61. Kg6 {[%clk 0:00:06.5]} 1-0

[Event "*** SCC Grand Prix: Titled Tuesday Blitz"]
[Site "Chess.com"]
[Date "2020.07.21"]
[Round "4"]
[White "sergiochess83"]
[Black "SantoBlue"]
[Result "0-1"]
[WhiteElo "2838"]
[BlackElo "2732"]
[TimeControl "180+1"]
[EndTime "10:39:44 PDT"]
[Termination "SantoBlue won by checkmate"]

1. e4 {[%clk 0:03:00.9]} 1... e5 {[%clk 0:02:57.9]} 2. Nf3 {[%clk 0:03:00.3]}
2... Nc6 {[%clk 0:02:58.5]} 3. Bb5 {[%clk 0:02:59.7]} 3... a6 {[%clk 0:02:58]}
4. Ba4 {[%clk 0:02:59.5]} 4... Nf6 {[%clk 0:02:58.4]} 5. O-O {[%clk 0:02:58.9]}
5... Be7 {[%clk 0:02:56.7]} 6. d3 {[%clk 0:02:58.7]} 6... b5 {[%clk 0:02:54.7]}
7. Bb3 {[%clk 0:02:58.3]} 7... d6 {[%clk 0:02:55.6]} 8. a4 {[%clk 0:02:52.2]}
8... Bd7 {[%clk 0:02:53.1]} 9. Bd2 {[%clk 0:02:51.1]} 9... O-O {[%clk
0:02:17.2]} 10. h3 {[%clk 0:02:50.5]} 10... Rb8 {[%clk 0:02:13.6]} 11. axb5
{[%clk 0:02:47.7]} 11... axb5 {[%clk 0:02:11.6]} 12. Nc3 {[%clk 0:02:48.3]}
12... Kh8 {[%clk 0:01:58]} 13. Nd5 {[%clk 0:02:27]} 13... Nxd5 {[%clk 0:01:54]}
14. exd5 {[%clk 0:02:26.6]} 14... Nd4 {[%clk 0:01:54.2]} 15. Nxd4 {[%clk
0:02:26.8]} 15... exd4 {[%clk 0:01:55.1]} 16. Qf3 {[%clk 0:02:19.9]} 16... Bf6
{[%clk 0:01:49.9]} 17. Rfe1 {[%clk 0:01:48.7]} 17... Re8 {[%clk 0:01:42.1]} 18.
g4 {[%clk 0:01:40.8]} 18... h6 {[%clk 0:01:28.8]} 19. Rxe8+ {[%clk 0:01:30.4]}
19... Qxe8 {[%clk 0:01:26.7]} 20. Bxh6 {[%clk 0:01:24]} 20... Qd8 {[%clk
0:01:18.8]} 21. Bd2 {[%clk 0:01:15.8]} 21... g5 {[%clk 0:01:18.5]} 22. h4 {[%clk
0:00:59.4]} 22... Kg7 {[%clk 0:01:06.9]} 23. h5 {[%clk 0:00:25.2]} 23... Qc8
{[%clk 0:01:05.5]} 24. h6+ {[%clk 0:00:20.1]} 24... Kg6 {[%clk 0:01:05.6]} 25.
Qe4+ {[%clk 0:00:20.7]} 25... Kxh6 {[%clk 0:01:05.2]} 26. Kg2 {[%clk 0:00:21.4]}
26... Kg7 {[%clk 0:01:01.9]} 27. Rh1 {[%clk 0:00:20.6]} 27... Qg8 {[%clk
0:01:02.1]} 28. f4 {[%clk 0:00:15.8]} 28... Re8 {[%clk 0:01:01.1]} 29. Qf3
{[%clk 0:00:16.1]} 29... Kf8 {[%clk 0:00:40.6]} 30. f5 {[%clk 0:00:16.1]} 30...
Ke7 {[%clk 0:00:31.7]} 31. Ra1 {[%clk 0:00:12]} 31... Be5 {[%clk 0:00:28.4]} 32.
Qh3 {[%clk 0:00:08.9]} 32... Qg7 {[%clk 0:00:25.6]} 33. Qh5 {[%clk 0:00:06.6]}
33... Rh8 {[%clk 0:00:12.7]} 34. Qxg5+ {[%clk 0:00:05.7]} 34... Qxg5 {[%clk
0:00:12.9]} 35. Bxg5+ {[%clk 0:00:06.6]} 35... f6 {[%clk 0:00:13.6]} 36. Bc1
{[%clk 0:00:03.6]} 36... Rh2+ {[%clk 0:00:13.3]} 37. Kf3 {[%clk 0:00:04.3]}
37... Rh3+ {[%clk 0:00:12.2]} 38. Kf2 {[%clk 0:00:04.6]} 38... Rh1 {[%clk
0:00:08.2]} 39. g5 {[%clk 0:00:03.6]} 39... Bxf5 {[%clk 0:00:06.6]} 40. gxf6+
{[%clk 0:00:04.4]} 40... Kf7 {[%clk 0:00:05.5]} 41. Kg2 {[%clk 0:00:01.7]} 41...
Re1 {[%clk 0:00:04.9]} 42. Kf3 {[%clk 0:00:02.6]} 42... Rf1+ {[%clk 0:00:04.1]}
43. Ke2 {[%clk 0:00:02.5]} 43... Rh1 {[%clk 0:00:04.1]} 44. Ra7 {[%clk
0:00:03.1]} 44... Rxc1 {[%clk 0:00:03.4]} 45. Rxc7+ {[%clk 0:00:04]} 45... Kxf6
{[%clk 0:00:04]} 46. Rb7 {[%clk 0:00:04.9]} 46... Rg1 {[%clk 0:00:04.5]} 47.
Rxb5 {[%clk 0:00:04.9]} 47... Bg4+ {[%clk 0:00:04.2]} 48. Kf2 {[%clk 0:00:05.2]}
48... Rh1 {[%clk 0:00:03.9]} 49. Rb8 {[%clk 0:00:06.1]} 49... Rh3 {[%clk
0:00:04]} 50. Kg2 {[%clk 0:00:06.2]} 50... Rh2+ {[%clk 0:00:03.8]} 51. Kg1
{[%clk 0:00:05.9]} 51... Kg5 {[%clk 0:00:04.3]} 52. Rf8 {[%clk 0:00:05.7]} 52...
Rd2 {[%clk 0:00:03.5]} 53. Ba4 {[%clk 0:00:05.3]} 53... Bf4 {[%clk 0:00:03.5]}
54. Rh8 {[%clk 0:00:03.3]} 54... Be3+ {[%clk 0:00:03.7]} 55. Kf1 {[%clk
0:00:03.8]} 55... Bf3 {[%clk 0:00:03.5]} 56. Rg8+ {[%clk 0:00:03.4]} 56... Kh6
{[%clk 0:00:04]} 57. Rh8+ {[%clk 0:00:03.4]} 57... Kg7 {[%clk 0:00:04.3]} 58.
Rd8 {[%clk 0:00:03.2]} 58... Rd1# {[%clk 0:00:04.8]} 0-1